bitfinex/quotes_BTCUSD_20260110
["timestamp","ask_amount","ask_price","bid_price","bid_amount"]
[1768044603823,0.04846721,90784.0,90772.0,0.01101661]
[1768044603998,0.04846721,90784.0,90770.0,0.28478827]
[1768044604201,0.04846721,90784.0,90770.0,0.22970413]
[1768044604366,0.04846721,90784.0,90772.0,0.01101661]
[1768044604800,0.04846721,90784.0,90773.0,0.01101649]
[1768044605201,0.04846721,90784.0,90772.0,0.01101661]
[1768044605404,0.04846721,90784.0,90773.0,0.01101649]
[1768044605747,0.04846721,90784.0,90774.0,0.01101637]
[1768044606183,0.04846721,90784.0,90773.0,0.01101649]
[1768044606676,0.04846721,90784.0,90774.0,0.01101637]
[1768044606873,0.03305673,90785.0,90773.0,0.01101649]
[1768044608244,0.03305673,90785.0,90774.0,0.01101637]
[1768044608446,0.03305673,90785.0,90773.0,0.01101649]
[1768044608844,0.03305673,90785.0,90774.0,0.01101637]
[1768044609044,0.03305673,90785.0,90772.0,0.06043002]
[1768044609467,0.04407176,90785.0,90772.0,0.06043002]
[1768044609746,0.03305673,90785.0,90772.0,0.06043002]
[1768044610565,0.03305673,90785.0,90772.0,0.04941341]
[1768044611054,0.04407176,90785.0,90772.0,0.06043002]
[1768044611919,0.04407176,90785.0,90772.0,0.04941341]
[1768044612086,0.03305673,90785.0,90772.0,0.06043002]
[1768044613659,0.04407176,90785.0,90772.0,0.04941341]
[1768044613828,0.04407176,90785.0,90772.0,0.06043002]
[1768044614001,0.04407176,90785.0,90772.0,0.04941341]
[1768044614373,0.03305673,90785.0,90772.0,0.06043002]
[1768044614740,0.01101515,90784.0,90772.0,0.04941341]
[1768044614940,0.04407176,90785.0,90772.0,0.04941341]
[1768044615155,0.03305673,90785.0,90772.0,0.06043002]
[1768044616517,0.04407176,90785.0,90772.0,0.04941341]
[1768044617251,0.03305673,90785.0,90772.0,0.06043002]
[1768044617683,0.03305673,90785.0,90773.0,0.01101649]
[1768044618016,0.03305673,90785.0,90772.0,0.06043002]
[1768044621180,0.03305673,90785.0,90773.0,0.01101649]
[1768044621540,0.03305673,90785.0,90772.0,0.06043002]
[1768044621747,0.04407176,90785.0,90772.0,0.04941341]
[1768044622121,0.04827289,90784.0,90771.0,0.01101673]
[1768044622681,0.05928804,90784.0,90770.0,0.22970413]
[1768044622802,0.04827289,90784.0,90771.0,0.01101673]
[1768044623544,0.05928804,90784.0,90770.0,0.22970413]
[1768044623743,0.04827289,90784.0,90771.0,0.01101673]
[1768044623942,0.04827289,90784.0,90773.0,0.01101649]
[1768044624120,0.02204,90785.0,90773.0,0.01101649]
[1768044624749,0.02204,90785.0,90774.0,0.01101637]
[1768044625108,0.02204,90785.0,90775.0,0.01101624]
[1768044625886,0.02204,90785.0,90776.0,0.01101612]
[1768044626748,0.02204,90785.0,90777.0,0.011016]
[1768044626859,0.02204,90785.0,90776.0,0.01101612]
[1768044627061,0.02204,90785.0,90775.0,0.01101624]
[1768044627267,0.02204,90785.0,90776.0,0.01101612]
[1768044627669,0.02204,90785.0,90775.0,0.01101624]
[1768044627969,0.02204,90785.0,90774.0,0.01101637]
[1768044628170,0.02204,90785.0,90775.0,0.01101624]
[1768044628416,0.01101637,90787.0,90775.0,0.01101624]
[1768044628592,0.02204,90786.0,90785.0,0.000999]
[1768044628789,0.02204,90786.0,90779.0,0.01101576]
[1768044629020,0.02204,90786.0,90780.0,0.01101564]
[1768044629851,0.02204,90786.0,90779.0,0.01101576]
[1768044631342,0.02204,90786.0,90778.0,0.01101588]
[1768044631523,0.02204,90786.0,90779.0,0.01101576]
[1768044631728,0.02204,90786.0,90780.0,0.01101564]
[1768044632069,0.02204,90789.0,90786.0,0.000909]
[1768044632229,0.02204,90789.0,90786.0,0.00056879]
[1768044632588,0.07031289,90789.0,90780.0,0.01101564]
[1768044632896,0.07031289,90789.0,90779.0,0.01101576]
[1768044633631,0.07031289,90789.0,90780.0,0.01101564]
[1768044633818,0.07031289,90789.0,90779.0,0.01101576]
[1768044634018,0.07031289,90789.0,90780.0,0.01101564]
[1768044634248,0.07031289,90789.0,90779.0,0.01101576]
[1768044634463,0.07031289,90789.0,90780.0,0.01101564]
[1768044634655,0.07031289,90789.0,90779.0,0.01101576]
[1768044634838,0.07031289,90789.0,90780.0,0.01101564]
[1768044635645,0.07031289,90789.0,90781.0,0.01101552]
[1768044635847,0.07031289,90789.0,90778.0,0.01101588]
[1768044636030,0.07031289,90789.0,90780.0,0.06609374]
[1768044636231,0.07031289,90789.0,90781.0,0.01101552]
[1768044636453,0.07031289,90789.0,90779.0,0.01101576]
[1768044636674,0.07031289,90789.0,90782.0,0.01101539]
[1768044636914,0.07031289,90789.0,90780.0,0.01101564]
[1768044637080,0.07031289,90789.0,90781.0,0.01101552]
[1768044638113,0.02204,90789.0,90781.0,0.01101552]
[1768044638477,0.02204,90789.0,90780.0,0.01101564]
[1768044639224,0.02204,90789.0,90781.0,0.01101552]
[1768044639548,0.02204,90789.0,90780.0,0.01101564]
[1768044639747,0.02204,90789.0,90781.0,0.01101552]
[1768044639929,0.02204,90789.0,90780.0,0.01101564]
[1768044640097,0.02204,90789.0,90781.0,0.01101552]
[1768044640420,0.02194964,90789.0,90781.0,0.01101552]
[1768044640580,0.02194964,90789.0,90780.0,0.01101564]
[1768044641336,0.01101588,90792.0,90779.0,0.06609439]
[1768044641525,0.02204,90791.0,90781.0,0.04662114]
[1768044641724,0.02204,90790.0,90786.0,0.01101491]
[1768044641971,0.02204,90790.0,90784.0,0.06609045]
[1768044642170,0.02204,90790.0,90784.0,0.01101515]
[1768044642469,0.04769156,90789.0,90784.0,0.01101515]
[1768044642644,0.04769156,90789.0,90783.0,0.01101527]
[1768044643640,0.02204,90790.0,90783.0,0.01101527]
[1768044647443,0.02194964,90790.0,90782.0,0.01101539]
[1768044648226,0.02194964,90790.0,90781.0,0.01101552]
[1768044649188,0.02194964,90790.0,90782.0,0.01101539]
[1768044649577,0.02194964,90790.0,90783.0,0.01101527]
[1768044649735,0.02194964,90790.0,90782.0,0.01101539]
[1768044650360,0.02194964,90790.0,90783.0,0.01101527]
[1768044650671,0.02194964,90790.0,90782.0,0.01101539]
[1768044650905,0.02194964,90790.0,90783.0,0.01101527]
[1768044651028,0.02194964,90790.0,90782.0,0.01101539]
[1768044651641,0.02194964,90790.0,90783.0,0.01101527]
[1768044651858,0.02194964,90790.0,90783.0,0.01092522]
[1768044652071,0.02194964,90790.0,90781.0,0.01101552]
[1768044652316,0.02194964,90790.0,90781.0,0.06609265]
[1768044652486,0.02194964,90790.0,90783.0,0.01101527]
[1768044652806,0.02194964,90790.0,90781.0,0.01101552]
[1768044653034,0.02194964,90790.0,90781.0,0.06609291]
[1768044653190,0.02194964,90790.0,90781.0,0.01101552]
[1768044653394,0.02194964,90790.0,90782.0,0.01101539]
[1768044653613,0.02194964,90790.0,90781.0,0.01101552]
[1768044655027,0.02194964,90790.0,90782.0,0.01101539]
[1768044655194,0.02194964,90790.0,90781.0,0.01101552]
[1768044656606,0.02194964,90790.0,90782.0,0.01101539]
[1768044657035,0.02194964,90790.0,90781.0,0.01101552]
[1768044657707,0.02194964,90790.0,90782.0,0.01101539]
[1768044658777,0.02194964,90790.0,90781.0,0.01101552]
[1768044660528,0.02194964,90790.0,90780.0,0.01101564]
[1768044660741,0.02194964,90790.0,90779.0,0.01101576]
[1768044661142,0.02194964,90790.0,90778.0,0.01101588]
[1768044661343,0.02194964,90790.0,90779.0,0.01101576]
[1768044661539,0.02194964,90790.0,90780.0,0.01101564]
[1768044662182,0.02194964,90790.0,90779.0,0.01101576]
[1768044662586,0.02194964,90790.0,90780.0,0.01101564]
[1768044663415,0.02194964,90790.0,90781.0,0.01101552]
[1768044663896,0.02194964,90790.0,90780.0,0.01101564]
[1768044664300,0.02194964,90790.0,90781.0,0.01101552]
[1768044664475,0.02194964,90790.0,90780.0,0.01101564]
[1768044664778,0.02194964,90790.0,90781.0,0.01101552]
[1768044665978,0.02194964,90790.0,90780.0,0.01101564]
[1768044667012,0.02194964,90790.0,90781.0,0.01101552]
[1768044667211,0.02194964,90790.0,90780.0,0.01101564]
[1768044668765,0.02194964,90790.0,90781.0,0.01101552]
[1768044668910,0.02194964,90790.0,90780.0,0.01101564]
[1768044669506,0.02194964,90790.0,90781.0,0.01101552]
[1768044671550,0.02194964,90790.0,90782.0,0.01101539]
[1768044672708,0.02194964,90790.0,90783.0,0.01101527]
[1768044672877,0.02194964,90790.0,90782.0,0.01101539]
[1768044675376,0.02194964,90790.0,90781.0,0.01101552]
[1768044675732,0.02194964,90790.0,90780.0,0.01101564]
[1768044676048,0.0216448,90790.0,90782.0,0.01101539]
[1768044676255,0.02133997,90790.0,90782.0,0.01101539]
[1768044676458,0.02133997,90790.0,90781.0,0.01101552]
[1768044676661,0.02133997,90790.0,90782.0,0.01101539]
[1768044678608,0.02133997,90790.0,90779.0,0.01101576]
[1768044678809,0.02133997,90790.0,90782.0,0.01101539]
[1768044679260,0.02133997,90790.0,90782.0,0.01092532]
[1768044679467,0.02133997,90790.0,90781.0,0.01101552]
[1768044681194,0.02133997,90790.0,90780.0,0.01101564]
[1768044681473,0.02133997,90790.0,90782.0,0.01101539]
[1768044683206,0.01101576,90793.0,90782.0,0.01101539]
[1768044683405,0.01101576,90793.0,90780.0,0.06609384]
[1768044683406,0.02204,90791.0,90781.0,0.01101552]
[1768044683609,0.02204,90791.0,90782.0,0.01101539]
[1768044684785,0.02204,90791.0,90781.0,0.01101552]
[1768044685187,0.02204,90791.0,90780.0,0.01101564]
[1768044686280,0.02204,90791.0,90781.0,0.01101552]
[1768044687444,0.02204,90791.0,90782.0,0.01101539]
[1768044687829,0.02204,90791.0,90781.0,0.01101552]
[1768044688912,0.02204,90791.0,90780.0,0.01101564]
[1768044689114,0.02204,90791.0,90781.0,0.01101552]
[1768044690232,0.02204,90791.0,90782.0,0.01101539]
[1768044691474,0.02204,90791.0,90781.0,0.01101552]
[1768044691884,0.06781083,90791.0,90779.0,0.01101576]
[1768044692476,0.02204,90791.0,90780.0,0.01101564]
[1768044692674,0.02204,90791.0,90779.0,0.01101576]
[1768044693885,0.02204,90791.0,90779.0,0.06609454]
[1768044694098,0.02204,90791.0,90780.0,0.01101564]
[1768044694417,0.02204,90791.0,90781.0,0.01101552]
[1768044695395,0.02204,90791.0,90780.0,0.22966347]
[1768044696839,0.02204,90791.0,90780.0,0.21864783]
[1768044697052,0.02204,90791.0,90779.0,0.01101576]
[1768044697672,0.02204,90791.0,90780.0,0.01101564]
[1768044698389,0.04761414,90790.0,90780.0,0.01101564]
[1768044698741,0.04761414,90790.0,90779.0,0.01101576]
[1768044698943,0.04761414,90790.0,90780.0,0.01101564]
[1768044700588,0.04761414,90790.0,90781.0,0.01101552]
[1768044700794,0.04761414,90790.0,90780.0,0.01101564]
[1768044701159,0.04761414,90790.0,90781.0,0.01101552]
[1768044701377,0.04761414,90790.0,90780.0,0.01101564]
[1768044701582,0.04761414,90790.0,90781.0,0.01101552]
[1768044702061,0.04761414,90790.0,90780.0,0.01101564]
[1768044702257,0.04761414,90790.0,90781.0,0.01101552]
[1768044702462,0.04761414,90790.0,90780.0,0.01101564]
[1768044703450,0.04761414,90790.0,90781.0,0.01101552]
[1768044703647,0.04761414,90790.0,90780.0,0.01101564]
[1768044703998,0.04730918,90790.0,90781.0,0.01101552]
[1768044704399,0.04730918,90790.0,90780.0,0.01101564]
[1768044705364,0.04730918,90790.0,90781.0,0.01101552]
[1768044705503,0.04730918,90790.0,90780.0,0.01101564]
[1768044706448,0.04674118,90790.0,90779.0,0.01101576]
[1768044706628,0.04674118,90790.0,90781.0,0.01101552]
[1768044707314,0.04674118,90790.0,90780.0,0.01101564]
[1768044708906,0.04674118,90790.0,90781.0,0.01101552]
[1768044711606,0.04674118,90790.0,90780.0,0.01101564]
[1768044712842,0.04674118,90790.0,90781.0,0.01101552]
[1768044713301,0.04674118,90790.0,90780.0,0.01101564]
[1768044713520,0.04674118,90790.0,90781.0,0.01101552]
[1768044713698,0.04674118,90790.0,90780.0,0.01101564]
[1768044714058,0.04674118,90790.0,90781.0,0.01101552]
[1768044714187,0.04674118,90790.0,90780.0,0.01101564]
[1768044715366,0.04674118,90790.0,90781.0,0.01101552]
[1768044717510,0.04674118,90790.0,90781.0,0.01055284]
[1768044718080,0.04674118,90790.0,90782.0,0.01101539]
[1768044718458,0.04674118,90790.0,90781.0,0.01055284]
[1768044719786,0.04674118,90790.0,90780.0,0.01101564]
[1768044719942,0.04674118,90790.0,90780.0,0.22966347]
[1768044720586,0.04674118,90790.0,90781.0,0.01101552]
[1768044720760,0.04674118,90790.0,90782.0,0.01101539]
[1768044720984,0.04674118,90790.0,90781.0,0.01101552]
[1768044721874,0.04674118,90790.0,90784.0,0.01101515]
[1768044722446,0.04674118,90790.0,90783.0,0.01101527]
[1768044722590,0.04674118,90790.0,90784.0,0.01101515]
[1768044723433,0.04674118,90790.0,90783.0,0.01101527]
[1768044723643,0.04674118,90790.0,90782.0,0.01101539]
[1768044724490,0.04674118,90790.0,90783.0,0.01101527]
[1768044724974,0.04674118,90790.0,90782.0,0.01101539]
[1768044725175,0.04674118,90790.0,90783.0,0.01101527]
[1768044728269,0.04674118,90790.0,90784.0,0.01101515]
[1768044728520,0.04674118,90790.0,90783.0,0.01101527]
[1768044728890,0.04674118,90790.0,90784.0,0.01101515]
[1768044729095,0.04674118,90790.0,90783.0,0.01101527]
[1768044729630,0.02204,90791.0,90783.0,0.01101527]
[1768044730147,0.02204,90791.0,90784.0,0.01101515]
[1768044730288,0.02204,90791.0,90783.0,0.01101527]
[1768044732391,0.02204,90791.0,90784.0,0.01101515]
[1768044737028,0.02204,90791.0,90783.0,0.01101527]
[1768044737386,0.02204,90791.0,90784.0,0.01101515]
[1768044738028,0.02204,90791.0,90783.0,0.01101527]
[1768044738391,0.02204,90791.0,90784.0,0.01101515]
[1768044738586,0.02204,90791.0,90783.0,0.01101527]
[1768044739609,0.02204,90791.0,90781.0,0.01101552]
[1768044739841,0.02204,90791.0,90784.0,0.01101515]
[1768044743247,0.02204,90791.0,90782.0,0.01101539]
[1768044744627,0.02204,90791.0,90781.0,0.01101552]
[1768044745269,0.02204,90791.0,90780.0,0.27372593]
[1768044745470,0.02204,90791.0,90783.0,0.01101527]
[1768044747043,0.02204,90791.0,90782.0,0.01101539]
[1768044747203,0.02204,90791.0,90783.0,0.01101527]
[1768044748470,0.02204,90791.0,90782.0,0.01101539]
[1768044749699,0.02204,90791.0,90783.0,0.01101527]
[1768044750289,0.02204,90791.0,90784.0,0.01101515]
[1768044752252,0.02204,90791.0,90785.0,0.01101503]
[1768044754138,0.02204,90791.0,90784.0,0.01101515]
[1768044754594,0.02204,90791.0,90786.0,0.01101491]
[1768044754892,0.02204,90791.0,90785.0,0.01101503]
[1768044755972,0.02204,90791.0,90786.0,0.05861348]
[1768044756425,0.02204,90791.0,90786.0,0.04759857]
[1768044756625,0.02204,90791.0,90785.0,0.01101503]
[1768044757223,0.02204,90791.0,90784.0,0.01101515]
[1768044757657,0.02204,90791.0,90785.0,0.01101503]
[1768044758845,0.02204,90791.0,90782.0,0.05861396]
[1768044759250,0.02204,90791.0,90784.0,0.01101515]
[1768044761688,0.02204,90791.0,90783.0,0.01101527]
[1768044764666,0.02204,90791.0,90784.0,0.01101515]
[1768044764824,0.02204,90791.0,90784.0,0.01092506]
[1768044765443,0.02204,90791.0,90785.0,0.01101503]
[1768044766255,0.02204,90791.0,90784.0,0.05852363]
[1768044766784,0.02204,90791.0,90785.0,0.01101503]
[1768044766982,0.02204,90791.0,90784.0,0.05852363]
[1768044767189,0.02204,90791.0,90785.0,0.01101503]
[1768044767735,0.02204,90791.0,90784.0,0.04759857]
[1768044768264,0.02204,90791.0,90784.0,0.05861372]
[1768044768968,0.02204,90791.0,90784.0,0.05852364]
[1768044769090,0.02204,90791.0,90785.0,0.01101503]
[1768044770072,0.02204,90791.0,90784.0,0.01101515]
[1768044770471,0.02204,90791.0,90785.0,0.01101503]
[1768044770763,0.02204,90791.0,90784.0,0.01101515]
[1768044771167,0.02204,90791.0,90783.0,0.01101527]
[1768044771466,0.02204,90791.0,90784.0,0.01101515]
[1768044771650,0.02204,90791.0,90785.0,0.01101503]
[1768044772053,0.02204,90791.0,90784.0,0.01101515]
[1768044772256,0.02204,90791.0,90785.0,0.01101503]
[1768044772458,0.02204,90791.0,90784.0,0.01101515]
[1768044772654,0.02204,90791.0,90786.0,0.01101491]
[1768044774231,0.02204,90791.0,90786.0,0.06083779]
[1768044774427,0.02204,90791.0,90786.0,0.04982288]
[1768044777638,0.02204,90791.0,90786.0,0.01101491]
[1768044777837,0.00082168,90793.0,90791.0,0.04982288]
[1768044778043,0.02204,90796.0,90793.0,0.06083694]
[1768044778602,0.02204,90796.0,90793.0,0.04982288]
[1768044780962,0.02204,90796.0,90793.0,0.06083694]
[1768044781099,0.02204,90796.0,90793.0,0.04982288]
[1768044782164,0.02204,90796.0,90793.0,0.04973281]
[1768044785828,0.02204,90796.0,90792.0,0.01101418]
[1768044786012,0.0470301,90795.0,90792.0,0.01101418]
[1768044786640,0.0470301,90795.0,90791.0,0.0110143]
[1768044790033,0.0365875,90795.0,90792.0,0.01101418]
[1768044790261,0.0365875,90795.0,90791.0,0.0110143]
[1768044790461,0.0365875,90795.0,90792.0,0.01101418]
[1768044790864,0.0365875,90795.0,90791.0,0.0110143]
[1768044791072,0.02204,90796.0,90792.0,0.01101418]
[1768044791370,0.02204,90796.0,90792.0,0.0573982]
[1768044791866,0.02204,90796.0,90794.0,0.04638402]
[1768044796173,0.0001506,90797.0,90794.0,0.04629395]
[1768044796405,0.0221906,90797.0,90794.0,0.04629395]
[1768044800283,0.0221906,90797.0,90790.0,0.01101442]
[1768044801623,0.0221906,90797.0,90790.0,0.05739844]
[1768044802451,0.0001506,90797.0,90792.0,0.01101418]
[1768044802656,0.02204,90796.0,90792.0,0.01101418]
[1768044802858,0.02204,90796.0,90791.0,0.0110143]
[1768044803065,0.02204,90796.0,90789.0,0.01101455]
[1768044803475,0.02204,90796.0,90790.0,0.01101442]
[1768044803697,0.02204,90796.0,90789.0,0.01101455]
[1768044803898,0.02204,90796.0,90790.0,0.01101442]
[1768044804826,0.02204,90796.0,90789.0,0.01101455]
[1768044805137,0.02204,90796.0,90790.0,0.01101442]
[1768044805279,0.02204,90796.0,90785.0,0.01101503]
[1768044805482,0.02204,90796.0,90789.0,0.01101455]
[1768044806982,0.02204,90796.0,90790.0,0.01101442]
[1768044807396,0.02204,90796.0,90790.0,0.06608651]
[1768044807597,0.02204,90796.0,90792.0,0.01101418]
[1768044807883,0.02204,90796.0,90792.0,0.0573982]
[1768044808302,0.02204,90796.0,90792.0,0.04638402]
[1768044808736,0.02204,90796.0,90792.0,0.0573982]
[1768044808872,0.02204,90796.0,90792.0,0.04638402]
[1768044810297,0.02204,90796.0,90792.0,0.0573982]
[1768044810684,0.02204,90796.0,90792.0,0.04638402]
[1768044811094,0.02204,90796.0,90791.0,0.0110143]
[1768044811860,0.02204,90796.0,90792.0,0.01101418]
[1768044812189,0.02204,90795.0,90792.0,0.01101418]
[1768044813048,0.02204,90795.0,90789.0,0.01101455]
[1768044813292,0.02204,90795.0,90791.0,0.0110143]
[1768044814316,0.02204,90795.0,90792.0,0.01101418]
[1768044815615,0.02204,90795.0,90790.0,0.01101442]
[1768044815799,0.02204,90795.0,90791.0,0.0110143]
[1768044816316,0.02204,90795.0,90792.0,0.04759278]
[1768044818325,0.02204,90795.0,90792.0,0.05860696]
[1768044818626,0.02204,90795.0,90792.0,0.04759278]
[1768044819829,0.02204,90795.0,90792.0,0.05860696]
[1768044820352,0.02204,90795.0,90792.0,0.04759278]
[1768044823315,0.0001506,90797.0,90792.0,0.11367745]
[1768044823516,0.0001506,90797.0,90794.0,0.01101394]
[1768044824040,0.0001506,90797.0,90795.0,0.04759278]
[1768044824236,0.0001506,90797.0,90796.0,0.04759278]
[1768044825057,0.0001506,90797.0,90796.0,0.04750271]
[1768044825837,0.0001506,90797.0,90796.0,0.10257121]
[1768044826042,0.0001506,90797.0,90796.0,0.04750271]
[1768044826244,0.0001506,90797.0,90796.0,0.10257121]
[1768044826441,0.0001506,90797.0,90796.0,0.04750271]
[1768044826743,0.0001506,90797.0,90796.0,0.10257121]
[1768044826944,0.0001506,90797.0,90796.0,0.04750271]
[1768044833653,0.0001506,90797.0,90796.0,0.04650371]
[1768044833846,0.0001506,90797.0,90794.0,0.05758259]
[1768044834485,0.0001506,90797.0,90794.0,0.11265177]
[1768044835727,0.0001506,90797.0,90794.0,0.05758259]
[1768044835937,0.0001506,90797.0,90794.0,0.11265217]
[1768044836130,0.0001506,90797.0,90794.0,0.05758259]
[1768044836548,0.0001506,90797.0,90794.0,0.11265228]
[1768044836742,0.0001506,90797.0,90794.0,0.05758259]
[1768044836948,0.0001506,90797.0,90794.0,0.01101394]
[1768044839001,0.0001506,90797.0,90793.0,0.01101406]
[1768044839296,0.0001506,90797.0,90794.0,0.01101394]
[1768044840708,0.0001506,90797.0,90792.0,0.05758283]
[1768044840867,6e-07,90797.0,90794.0,0.01101394]
[1768044841273,6e-07,90797.0,90794.0,0.01092387]
[1768044841699,6e-07,90797.0,90794.0,0.06599354]
[1768044842337,6e-07,90797.0,90795.0,0.05506911]
[1768044842496,6e-07,90797.0,90794.0,0.06599352]
[1768044845872,6e-07,90797.0,90795.0,0.05506908]
[1768044846473,6e-07,90797.0,90792.0,0.11265368]
[1768044846474,6e-07,90797.0,90793.0,0.01101406]
[1768044847384,6e-07,90797.0,90794.0,0.06608351]
[1768044847543,6e-07,90797.0,90794.0,0.01101394]
[1768044847747,6e-07,90797.0,90792.0,0.05758283]
[1768044848069,0.01972316,90803.0,90795.0,0.01101382]
[1768044849241,0.01972316,90803.0,90794.0,0.01101394]
[1768044849798,0.01972316,90803.0,90795.0,0.01101382]
[1768044851388,0.01972316,90803.0,90793.0,0.01101406]
[1768044851612,0.01972316,90803.0,90794.0,0.01101394]
[1768044852700,0.01972316,90803.0,90795.0,0.01101382]
[1768044852910,0.01972316,90803.0,90796.0,0.0110137]
[1768044853117,0.01972316,90803.0,90795.0,0.01101382]
[1768044855302,0.01972316,90803.0,90792.0,0.05758283]
[1768044855568,0.01972316,90803.0,90794.0,0.01101394]
[1768044856151,0.01972316,90803.0,90795.0,0.01101382]
[1768044856529,0.01972316,90803.0,90796.0,0.0110137]
[1768044858015,0.01972316,90803.0,90795.0,0.01101382]
[1768044858243,0.01972316,90803.0,90796.0,0.0110137]
[1768044860771,0.01972316,90803.0,90797.0,0.01101357]
[1768044860978,0.01972316,90803.0,90797.0,0.01092657]
[1768044863790,0.01972316,90803.0,90792.0,0.04656865]
[1768044863997,0.01972316,90803.0,90796.0,0.0110137]
[1768044864809,0.01972316,90803.0,90795.0,0.01101382]
[1768044865011,0.01972316,90803.0,90794.0,0.01101394]
[1768044865799,0.01972316,90803.0,90795.0,0.01101382]
[1768044866323,0.01972316,90803.0,90794.0,0.01101394]
[1768044866520,0.01972316,90803.0,90795.0,0.01101382]
[1768044867347,0.01941755,90803.0,90795.0,0.01101382]
[1768044868365,0.01941755,90803.0,90794.0,0.01101394]
[1768044870545,0.01941755,90803.0,90795.0,0.01101382]
[1768044872984,0.01941755,90803.0,90796.0,0.0110137]
[1768044874077,0.01941755,90803.0,90795.0,0.01101382]
[1768044874482,0.01941755,90803.0,90796.0,0.0110137]
[1768044874848,0.01941755,90803.0,90795.0,0.01101382]
[1768044875116,0.01941755,90803.0,90792.0,0.1126537]
[1768044875322,0.01941755,90803.0,90793.0,0.01101406]
[1768044875539,0.01941755,90803.0,90792.0,0.05758283]
[1768044875757,0.02007477,90802.0,90792.0,0.05758283]
[1768044876111,0.02007477,90802.0,90793.0,0.01101406]
[1768044876311,0.02007477,90802.0,90792.0,0.05758283]
[1768044876513,0.02007477,90802.0,90793.0,0.01101406]
[1768044876718,0.02007477,90802.0,90792.0,0.05758283]
[1768044878065,0.02007477,90802.0,90793.0,0.01101406]
[1768044879039,0.02007477,90802.0,90794.0,0.01101394]
[1768044879322,0.02007477,90802.0,90793.0,0.01101406]
[1768044880166,0.02204,90801.0,90793.0,0.01101406]
[1768044882078,0.02204,90801.0,90794.0,0.01101394]
[1768044885895,0.02204,90801.0,90793.0,0.01101406]
[1768044887094,0.02204,90801.0,90792.0,0.05758283]
[1768044887319,0.02204,90801.0,90793.0,0.01101406]
[1768044887829,0.02204,90801.0,90792.0,0.04656865]
[1768044888185,0.02204,90801.0,90793.0,0.01101406]
[1768044888583,0.0715539,90801.0,90793.0,0.01101406]
[1768044888785,0.0715539,90801.0,90792.0,0.01101418]
[1768044889915,0.0715539,90801.0,90793.0,0.01101406]
[1768044890771,0.0715539,90801.0,90791.0,0.0110143]
[1768044891089,0.0715539,90801.0,90792.0,0.01101418]
[1768044892218,0.0715539,90801.0,90791.0,0.0110143]
[1768044892393,0.0715539,90801.0,90792.0,0.01101418]
[1768044892599,0.0715539,90801.0,90791.0,0.0110143]
[1768044892796,0.0715539,90801.0,90792.0,0.01101418]
[1768044893678,0.0495139,90801.0,90792.0,0.01101418]
[1768044893927,0.00035161,90805.0,90804.0,0.05506365]
[1768044894133,0.00035161,90805.0,90804.0,0.04819733]
[1768044894757,6.1e-07,90805.0,90804.0,0.04819733]
[1768044894893,6.1e-07,90805.0,90804.0,0.10326098]
[1768044895087,6.1e-07,90805.0,90804.0,0.05506365]
[1768044895288,6.1e-07,90805.0,90803.0,0.05506411]
[1768044896951,6.1e-07,90805.0,90802.0,0.06607775]
[1768044897153,6.1e-07,90805.0,90802.0,0.01101297]
[1768044897358,6.1e-07,90805.0,90801.0,0.01101309]
[1768044897536,6.1e-07,90805.0,90802.0,0.01101297]
[1768044897736,6.1e-07,90805.0,90801.0,0.01101309]
[1768044897938,6.1e-07,90805.0,90802.0,0.01101297]
[1768044900164,6.1e-07,90805.0,90801.0,0.01101309]
[1768044900342,6.1e-07,90805.0,90801.0,0.05921042]
[1768044900504,6.1e-07,90805.0,90801.0,0.04819733]
[1768044901177,6.1e-07,90805.0,90800.0,0.01101321]
[1768044901388,0.000501,90801.0,90800.0,0.01101321]
[1768044901589,6.1e-07,90805.0,90800.0,0.01101321]
[1768044903299,6.1e-07,90805.0,90800.0,0.01051221]
[1768044903700,0.01101321,90805.0,90791.0,0.04630796]
[1768044904065,0.01101321,90805.0,90794.0,0.01101357]
[1768044904277,0.01101321,90805.0,90791.0,0.05732226]
[1768044904479,6.1e-07,90805.0,90792.0,0.01101418]
[1768044905123,6.1e-07,90805.0,90793.0,0.01101406]
[1768044905976,6.1e-07,90805.0,90792.0,0.01101418]
[1768044906134,6.1e-07,90805.0,90794.0,0.01101394]
[1768044906470,6.1e-07,90805.0,90793.0,0.01101406]
[1768044906682,6.1e-07,90805.0,90794.0,0.01101394]
[1768044908204,6.1e-07,90805.0,90793.0,0.02202824]
[1768044909262,6.1e-07,90805.0,90793.0,0.01101406]
[1768044910275,6.1e-07,90805.0,90792.0,0.01101418]
[1768044911355,6.1e-07,90805.0,90793.0,0.01101406]
[1768044911737,6.1e-07,90805.0,90792.0,0.01101418]
[1768044911944,6.1e-07,90805.0,90793.0,0.01101406]
[1768044913378,6.1e-07,90805.0,90792.0,0.01101418]
[1768044913584,6.1e-07,90805.0,90793.0,0.01101406]
[1768044914110,6.1e-07,90805.0,90792.0,0.01101418]
[1768044914480,6.1e-07,90805.0,90793.0,0.01101406]
[1768044914681,6.1e-07,90805.0,90792.0,0.01101418]
[1768044914878,6.1e-07,90805.0,90793.0,0.01101406]
[1768044916013,6.1e-07,90805.0,90792.0,0.01101418]
[1768044916938,6.1e-07,90805.0,90793.0,0.01101406]
[1768044917150,6.1e-07,90805.0,90792.0,0.01101418]
[1768044918660,6.1e-07,90805.0,90793.0,0.01101406]
[1768044918862,6.1e-07,90805.0,90792.0,0.01101418]
[1768044919764,6.1e-07,90805.0,90793.0,0.01101406]
[1768044922566,6.1e-07,90805.0,90794.0,0.01101394]
[1768044923323,6.1e-07,90805.0,90791.0,0.09037506]
[1768044923680,6.1e-07,90805.0,90792.0,0.01101418]
[1768044923881,6.1e-07,90805.0,90793.0,0.01101406]
[1768044924114,6.1e-07,90805.0,90794.0,0.01101394]
[1768044924316,6.1e-07,90805.0,90793.0,0.01101406]
[1768044926221,6.1e-07,90805.0,90794.0,0.01101394]
[1768044927165,6.1e-07,90805.0,90792.0,0.01101418]
[1768044927303,6.1e-07,90805.0,90793.0,0.01101406]
[1768044931673,0.04590178,90805.0,90793.0,0.01101406]
[1768044931837,0.04590178,90805.0,90790.0,0.01101442]
[1768044932047,0.04590178,90805.0,90792.0,0.01101418]
[1768044932584,0.04590178,90805.0,90793.0,0.01101406]
[1768044936924,6.1e-07,90805.0,90793.0,0.01101406]
[1768044938584,6.1e-07,90805.0,90794.0,0.01101394]
[1768044938789,6.1e-07,90805.0,90793.0,0.01101406]
[1768044941753,0.01101321,90805.0,90792.0,0.01101418]
[1768044941958,6.1e-07,90805.0,90793.0,0.01101406]
[1768044944210,6.1e-07,90805.0,90794.0,0.01101394]
[1768044945330,6.1e-07,90805.0,90793.0,0.01101406]
[1768044947143,6.1e-07,90805.0,90794.0,0.01101394]
[1768044950701,6.1e-07,90805.0,90795.0,0.01101382]
[1768044950901,6.1e-07,90805.0,90795.0,0.01094559]
[1768044951489,6.1e-07,90805.0,90794.0,0.01101394]
[1768044951862,6.1e-07,90805.0,90795.0,0.01101382]
[1768044953003,0.04636933,90805.0,90794.0,0.01101394]
[1768044953411,6.1e-07,90805.0,90794.0,0.01101394]